[Event "*** Titled Tuesday Blitz"]
[Site "Chess.com"]
[Date "2020.04.14"]
[Round "9"]
[White "ElliPaehtz"]
[Black "Fins0905"]
[Result "1/2-1/2"]
[WhiteElo "2576"]
[BlackElo "2704"]
[TimeControl "180+1"]
[EndTime "11:42:59 PDT"]
[Termination "Game drawn by repetition"]

1. d4 {[%clk 0:03:00.9]} 1... d5 {[%clk 0:02:59.8]} 2. Bf4 {[%clk 0:03:00]} 2...
c5 {[%clk 0:02:59.6]} 3. e3 {[%clk 0:02:59.9]} 3... cxd4 {[%clk 0:02:58.8]} 4.
exd4 {[%clk 0:02:59.7]} 4... Nc6 {[%clk 0:02:59.3]} 5. c3 {[%clk 0:03:00]} 5...
Nf6 {[%clk 0:02:59]} 6. Nd2 {[%clk 0:02:58.7]} 6... Bf5 {[%clk 0:02:58.6]} 7.
Ngf3 {[%clk 0:02:58.3]} 7... e6 {[%clk 0:02:58.5]} 8. Qb3 {[%clk 0:02:58.2]}
8... Bd6 {[%clk 0:02:56.8]} 9. Qxb7 {[%clk 0:02:51.2]} 9... Bxf4 {[%clk
0:02:55.9]} 10. Qxc6+ {[%clk 0:02:51.3]} 10... Kf8 {[%clk 0:02:56.5]} 11. g3
{[%clk 0:02:48.4]} 11... Bd6 {[%clk 0:02:50.1]} 12. Nh4 {[%clk 0:02:44.8]} 12...
Rb8 {[%clk 0:02:44.5]} 13. Nxf5 {[%clk 0:02:31.5]} 13... exf5 {[%clk 0:02:45.4]}
14. Nb3 {[%clk 0:02:13.8]} 14... Qe7+ {[%clk 0:02:26.5]} 15. Be2 {[%clk
0:02:11.9]} 15... Rd8 {[%clk 0:02:07.4]} 16. Kf1 {[%clk 0:01:59.3]} 16... g6
{[%clk 0:02:01.7]} 17. Re1 {[%clk 0:01:57.4]} 17... Kg7 {[%clk 0:01:58.2]} 18.
Bf3 {[%clk 0:01:57.5]} 18... Ne4 {[%clk 0:01:57.8]} 19. Kg2 {[%clk 0:01:52]}
19... h5 {[%clk 0:01:54.1]} 20. h4 {[%clk 0:01:46.4]} 20... Qe6 {[%clk
0:01:36.6]} 21. c4 {[%clk 0:01:38]} 21... Qf6 {[%clk 0:01:18.1]} 22. cxd5 {[%clk
0:01:33.3]} 22... Rc8 {[%clk 0:01:17.8]} 23. Qb5 {[%clk 0:01:20.8]} 23... Rc2
{[%clk 0:01:16.4]} 24. Re2 {[%clk 0:01:20]} 24... Rhc8 {[%clk 0:01:15.3]} 25.
Rhe1 {[%clk 0:01:17.5]} 25... g5 {[%clk 0:00:41]} 26. hxg5 {[%clk 0:01:05.7]}
26... Qxg5 {[%clk 0:00:41.9]} 27. Bxe4 {[%clk 0:01:00.6]} 27... fxe4 {[%clk
0:00:41.1]} 28. Rxc2 {[%clk 0:00:54.5]} 28... Rxc2 {[%clk 0:00:39.7]} 29. Re2
{[%clk 0:00:54.5]} 29... Rxe2 {[%clk 0:00:23.9]} 30. Qxe2 {[%clk 0:00:53.5]}
30... Qxd5 {[%clk 0:00:24.3]} 31. Qe3 {[%clk 0:00:45.1]} 31... Kg6 {[%clk
0:00:20.6]} 32. Nd2 {[%clk 0:00:40.7]} 32... f5 {[%clk 0:00:20.6]} 33. b3 {[%clk
0:00:36.1]} 33... Be7 {[%clk 0:00:18]} 34. Nc4 {[%clk 0:00:34.2]} 34... Bf6
{[%clk 0:00:18.2]} 35. Ne5+ {[%clk 0:00:26.4]} 35... Bxe5 {[%clk 0:00:13.1]} 36.
dxe5 {[%clk 0:00:26.4]} 36... a5 {[%clk 0:00:13]} 37. Qa7 {[%clk 0:00:23.5]}
37... Qxe5 {[%clk 0:00:09.4]} 38. Qb6+ {[%clk 0:00:20.7]} 38... Kg7 {[%clk
0:00:07.9]} 39. Qb7+ {[%clk 0:00:20.2]} 39... Kg6 {[%clk 0:00:07.9]} 40. Qc6+
{[%clk 0:00:20.3]} 40... Kg7 {[%clk 0:00:07.1]} 41. Qd7+ {[%clk 0:00:19.8]}
41... Kf6 {[%clk 0:00:06.8]} 42. Qd8+ {[%clk 0:00:19.1]} 42... Kf7 {[%clk
0:00:06.4]} 43. Qd7+ {[%clk 0:00:18.4]} 43... Kf6 {[%clk 0:00:06.1]} 44. Qd8+
{[%clk 0:00:18.3]} 44... Kf7 {[%clk 0:00:06.4]} 45. Qd7+ {[%clk 0:00:18.4]}
45... Kf6 {[%clk 0:00:06.5]} 1/2-1/2

[Event "*** Titled Tuesday Blitz"]
[Site "Chess.com"]
[Date "2020.04.14"]
[Round "9"]
[White "Dare-Dare"]
[Black "BIG_Pirate"]
[Result "1-0"]
[WhiteElo "2216"]
[BlackElo "2357"]
[TimeControl "180+1"]
[EndTime "11:43:00 PDT"]
[Termination "Dare-Dare won by resignation"]

1. Nf3 {[%clk 0:03:00.9]} 1... d5 {[%clk 0:02:59.5]} 2. c4 {[%clk 0:03:01.2]}
2... c6 {[%clk 0:02:59.6]} 3. e3 {[%clk 0:03:01.6]} 3... Nf6 {[%clk 0:02:59.4]}
4. Nc3 {[%clk 0:03:02.3]} 4... e6 {[%clk 0:02:57.8]} 5. b3 {[%clk 0:03:02.4]}
5... Nbd7 {[%clk 0:02:57.6]} 6. Bb2 {[%clk 0:03:03.1]} 6... Be7 {[%clk
0:02:57.6]} 7. Qc2 {[%clk 0:03:02.7]} 7... a6 {[%clk 0:02:47]} 8. Rg1 {[%clk
0:02:59]} 8... b5 {[%clk 0:02:46.1]} 9. g3 {[%clk 0:02:59.3]} 9... Bb7 {[%clk
0:02:38.7]} 10. g4 {[%clk 0:02:58.8]} 10... h6 {[%clk 0:02:37.7]} 11. h4 {[%clk
0:02:58.6]} 11... bxc4 {[%clk 0:02:19.8]} 12. bxc4 {[%clk 0:02:58.1]} 12... c5
{[%clk 0:02:20.1]} 13. g5 {[%clk 0:02:58.3]} 13... hxg5 {[%clk 0:02:15.2]} 14.
hxg5 {[%clk 0:02:59.2]} 14... Nh5 {[%clk 0:02:11.2]} 15. Be2 {[%clk 0:02:49.7]}
15... Rg8 {[%clk 0:01:56.9]} 16. Nh2 {[%clk 0:02:34.9]} 16... g6 {[%clk
0:01:53.6]} 17. f4 {[%clk 0:02:31.4]} 17... Ng7 {[%clk 0:01:51.2]} 18. Ng4
{[%clk 0:02:30.1]} 18... Nf5 {[%clk 0:01:44.6]} 19. Bf3 {[%clk 0:02:15]} 19...
Rb8 {[%clk 0:01:41.6]} 20. cxd5 {[%clk 0:02:14]} 20... Nb6 {[%clk 0:01:17.1]}
21. Na4 {[%clk 0:01:26.3]} 21... Nxd5 {[%clk 0:01:04.4]} 22. Bxd5 {[%clk
0:01:23.1]} 22... Qxd5 {[%clk 0:00:58.1]} 23. O-O-O {[%clk 0:00:54.6]} 23... Bc6
{[%clk 0:00:49.9]} 24. Nc3 {[%clk 0:00:52.1]} 24... Qc4 {[%clk 0:00:39.2]} 25.
d3 {[%clk 0:00:52.1]} 25... Qb4 {[%clk 0:00:35]} 26. Ne4 {[%clk 0:00:52.1]}
26... Bxe4 {[%clk 0:00:15.2]} 27. dxe4 {[%clk 0:00:52.5]} 27... Nh4 {[%clk
0:00:15.6]} 28. Rd3 {[%clk 0:00:39.7]} 28... c4 {[%clk 0:00:14.1]} 29. Rd4
{[%clk 0:00:38.1]} 29... Nf3 {[%clk 0:00:10.9]} 30. Rxc4 {[%clk 0:00:36.7]}
30... Qxb2+ {[%clk 0:00:07.6]} 31. Qxb2 {[%clk 0:00:36.8]} 31... Rxb2 {[%clk
0:00:08.2]} 32. Kxb2 {[%clk 0:00:37.7]} 32... Nxg1 {[%clk 0:00:08]} 33. Rc8+
{[%clk 0:00:34.3]} 33... Bd8 {[%clk 0:00:07]} 34. Nf6+ {[%clk 0:00:28.2]} 34...
Ke7 {[%clk 0:00:07.5]} 35. Nxg8+ {[%clk 0:00:28.1]} 35... Kd7 {[%clk 0:00:08]}
36. Ra8 {[%clk 0:00:28.1]} 36... a5 {[%clk 0:00:07.6]} 37. Ra7+ {[%clk
0:00:27.6]} 37... Ke8 {[%clk 0:00:06.5]} 38. Nf6+ {[%clk 0:00:26.6]} 38... Bxf6+
{[%clk 0:00:06.7]} 39. gxf6 {[%clk 0:00:27.5]} 39... Nf3 {[%clk 0:00:05.2]} 40.
Kc3 {[%clk 0:00:27.3]} 40... Nh4 {[%clk 0:00:04.3]} 41. Kd3 {[%clk 0:00:26.2]}
41... Ng2 {[%clk 0:00:04.2]} 42. Rxa5 {[%clk 0:00:24.9]} 42... Ne1+ {[%clk
0:00:03.7]} 43. Kd2 {[%clk 0:00:24.5]} 43... Nf3+ {[%clk 0:00:04.2]} 44. Ke2
{[%clk 0:00:25]} 44... Ng1+ {[%clk 0:00:04.3]} 45. Kf2 {[%clk 0:00:25.6]} 45...
Nh3+ {[%clk 0:00:04.1]} 46. Kg2 {[%clk 0:00:26.1]} 46... Nxf4+ {[%clk
0:00:04.8]} 47. exf4 {[%clk 0:00:26.3]} 1-0

[Event "*** Titled Tuesday Blitz"]
[Site "Chess.com"]
[Date "2020.04.14"]
[Round "9"]
[White "RojonR"]
[Black "ItsCheckM8Mate"]
[Result "1-0"]
[WhiteElo "2397"]
[BlackElo "2167"]
[TimeControl "180+1"]
[EndTime "11:43:01 PDT"]
[Termination "RojonR won by resignation"]

1. e4 {[%clk 0:03:00.9]} 1... e5 {[%clk 0:02:59.9]} 2. Nf3 {[%clk 0:02:52.6]}
2... Nc6 {[%clk 0:02:59.6]} 3. Nc3 {[%clk 0:02:49.7]} 3... Nf6 {[%clk
0:02:58.9]} 4. Be2 {[%clk 0:02:49]} 4... d5 {[%clk 0:02:58.2]} 5. exd5 {[%clk
0:02:48.6]} 5... Nxd5 {[%clk 0:02:57.9]} 6. O-O {[%clk 0:02:48.7]} 6... Be7
{[%clk 0:02:57.3]} 7. Bb5 {[%clk 0:02:48.3]} 7... Nxc3 {[%clk 0:02:51.3]} 8.
bxc3 {[%clk 0:02:45.9]} 8... Bd6 {[%clk 0:02:48.3]} 9. d4 {[%clk 0:02:44]} 9...
exd4 {[%clk 0:02:36.2]} 10. Re1+ {[%clk 0:02:29.5]} 10... Kf8 {[%clk 0:02:34.2]}
11. cxd4 {[%clk 0:02:21.3]} 11... Bg4 {[%clk 0:02:32.4]} 12. h3 {[%clk
0:02:05.4]} 12... Bxf3 {[%clk 0:02:28.4]} 13. gxf3 {[%clk 0:01:59.9]} 13... Qh4
{[%clk 0:02:11.9]} 14. Bxc6 {[%clk 0:01:49.5]} 14... bxc6 {[%clk 0:02:10.9]} 15.
Kg2 {[%clk 0:01:48.4]} 15... g6 {[%clk 0:01:49.1]} 16. Re4 {[%clk 0:01:46.2]}
16... Qh5 {[%clk 0:01:43.1]} 17. c4 {[%clk 0:01:09.5]} 17... f5 {[%clk
0:01:25.4]} 18. Re6 {[%clk 0:01:02.5]} 18... Kf7 {[%clk 0:01:24.7]} 19. d5
{[%clk 0:01:02.5]} 19... c5 {[%clk 0:01:13.6]} 20. Qe2 {[%clk 0:00:49.1]} 20...
Rhe8 {[%clk 0:01:12.7]} 21. Bd2 {[%clk 0:00:46.2]} 21... f4 {[%clk 0:01:00.5]}
22. Re1 {[%clk 0:00:43.1]} 22... Qg5+ {[%clk 0:00:55.4]} 23. Kh2 {[%clk
0:00:42.9]} 23... Re7 {[%clk 0:00:53.5]} 24. Rxe7+ {[%clk 0:00:24.3]} 24... Bxe7
{[%clk 0:00:53]} 25. Qe6+ {[%clk 0:00:23.4]} 25... Kf8 {[%clk 0:00:52.6]} 26.
Re5 {[%clk 0:00:18.1]} 26... Qf6 {[%clk 0:00:51.8]} 27. Bc3 {[%clk 0:00:15.6]}
27... Qxe6 {[%clk 0:00:46.8]} 28. Rxe6 {[%clk 0:00:16.5]} 28... Kf7 {[%clk
0:00:42.8]} 29. Be5 {[%clk 0:00:16.4]} 29... Rb8 {[%clk 0:00:35.4]} 30. Bxf4
{[%clk 0:00:15.5]} 30... Rb2 {[%clk 0:00:34.4]} 31. Kg2 {[%clk 0:00:16]} 31...
c6 {[%clk 0:00:27.4]} 32. Rxc6 {[%clk 0:00:15.6]} 32... Bh4 {[%clk 0:00:22]} 33.
Be3 {[%clk 0:00:14.4]} 33... Rxa2 {[%clk 0:00:20.5]} 34. Rxc5 {[%clk 0:00:13.7]}
34... Be7 {[%clk 0:00:15.7]} 35. Rc7 {[%clk 0:00:13.9]} 35... Kf6 {[%clk
0:00:08]} 36. Rxa7 {[%clk 0:00:13]} 36... Bd6 {[%clk 0:00:07.1]} 37. Rxa2 {[%clk
0:00:11.7]} 1-0

[Event "*** Titled Tuesday Blitz"]
[Site "Chess.com"]
[Date "2020.04.14"]
[Round "9"]
[White "martinbitel"]
[Black "Budisavljevic"]
[Result "0-1"]
[WhiteElo "2606"]
[BlackElo "2459"]
[TimeControl "180+1"]
[EndTime "11:43:02 PDT"]
[Termination "Budisavljevic won on time"]

1. e4 {[%clk 0:03:00.9]} 1... c5 {[%clk 0:02:54.4]} 2. Nf3 {[%clk 0:03:00.3]}
2... e6 {[%clk 0:02:53.7]} 3. d4 {[%clk 0:03:00.1]} 3... cxd4 {[%clk 0:02:54.4]}
4. Nxd4 {[%clk 0:03:01]} 4... a6 {[%clk 0:02:54.1]} 5. Bd3 {[%clk 0:03:00.7]}
5... Qb6 {[%clk 0:02:52.2]} 6. Nb3 {[%clk 0:02:52.9]} 6... Qc7 {[%clk
0:02:50.6]} 7. Nc3 {[%clk 0:02:50.7]} 7... b5 {[%clk 0:02:48.5]} 8. Be3 {[%clk
0:02:48.4]} 8... Bb7 {[%clk 0:02:47.3]} 9. O-O {[%clk 0:02:45.8]} 9... Nf6
{[%clk 0:02:46.7]} 10. a3 {[%clk 0:02:41.6]} 10... Be7 {[%clk 0:02:43.6]} 11. f4
{[%clk 0:02:41.6]} 11... d6 {[%clk 0:02:42.5]} 12. Qf3 {[%clk 0:02:34.2]} 12...
Nbd7 {[%clk 0:02:38.1]} 13. Qg3 {[%clk 0:02:32.5]} 13... O-O {[%clk 0:02:35.9]}
14. Rae1 {[%clk 0:02:29.2]} 14... e5 {[%clk 0:02:23.4]} 15. f5 {[%clk
0:02:23.4]} 15... Rfe8 {[%clk 0:02:13.3]} 16. Nd2 {[%clk 0:01:26.2]} 16... d5
{[%clk 0:02:03.7]} 17. exd5 {[%clk 0:01:25.6]} 17... Nxd5 {[%clk 0:01:59.5]} 18.
Nxd5 {[%clk 0:01:25.4]} 18... Bxd5 {[%clk 0:02:00.4]} 19. Ne4 {[%clk 0:01:22.5]}
19... Nf6 {[%clk 0:01:56]} 20. Bh6 {[%clk 0:01:18]} 20... Qb6+ {[%clk
0:01:36.4]} 21. Be3 {[%clk 0:00:46.1]} 21... Qb7 {[%clk 0:01:30.3]} 22. Nc5
{[%clk 0:00:36.7]} 22... Bxc5 {[%clk 0:01:26]} 23. Bxc5 {[%clk 0:00:37.6]} 23...
Rac8 {[%clk 0:01:17.3]} 24. b4 {[%clk 0:00:37]} 24... e4 {[%clk 0:01:13.4]} 25.
Bd4 {[%clk 0:00:33.2]} 25... exd3 {[%clk 0:01:08.6]} 26. cxd3 {[%clk 0:00:19.8]}
26... Qc6 {[%clk 0:01:01.7]} 27. h3 {[%clk 0:00:16.6]} 27... Rxe1 {[%clk
0:00:55.3]} 28. Rxe1 {[%clk 0:00:17.5]} 28... Rd8 {[%clk 0:00:53.3]} 29. Be5
{[%clk 0:00:12.7]} 29... Kh8 {[%clk 0:00:47.8]} 30. Re3 {[%clk 0:00:11.1]} 30...
Ne8 {[%clk 0:00:32]} 31. Qf4 {[%clk 0:00:08.2]} 31... f6 {[%clk 0:00:30.3]} 32.
Bd4 {[%clk 0:00:07.4]} 32... Nc7 {[%clk 0:00:25.7]} 33. Rg3 {[%clk 0:00:07.2]}
33... Qd6 {[%clk 0:00:20.4]} 34. Qg4 {[%clk 0:00:06.1]} 34... Qd7 {[%clk
0:00:18.7]} 35. Kh2 {[%clk 0:00:04.3]} 35... Bg8 {[%clk 0:00:18.2]} 36. Bc3
{[%clk 0:00:03]} 36... Ne8 {[%clk 0:00:17.3]} 37. Qh4 {[%clk 0:00:03.1]} 37...
Qc7 {[%clk 0:00:14.8]} 0-1

[Event "*** Titled Tuesday Blitz"]
[Site "Chess.com"]
[Date "2020.04.14"]
[Round "9"]
[White "BlackWidow515"]
[Black "SameerMujumdar"]
[Result "0-1"]
[WhiteElo "1983"]
[BlackElo "2377"]
[TimeControl "180+1"]
[EndTime "11:43:02 PDT"]
[Termination "SameerMujumdar won by checkmate"]

1. e4 {[%clk 0:02:59.2]} 1... d6 {[%clk 0:02:57.1]} 2. d4 {[%clk 0:02:58.5]}
2... Nf6 {[%clk 0:02:57.3]} 3. Bd3 {[%clk 0:02:57.7]} 3... g6 {[%clk 0:02:57.4]}
4. Ne2 {[%clk 0:02:57.2]} 4... Bg7 {[%clk 0:02:57.7]} 5. O-O {[%clk 0:02:57.5]}
5... O-O {[%clk 0:02:58.1]} 6. c4 {[%clk 0:02:56.7]} 6... c5 {[%clk 0:02:57.9]}
7. d5 {[%clk 0:02:56.4]} 7... b5 {[%clk 0:02:56.2]} 8. cxb5 {[%clk 0:02:52.9]}
8... a6 {[%clk 0:02:57.1]} 9. bxa6 {[%clk 0:02:52.4]} 9... Bxa6 {[%clk
0:02:57.8]} 10. Nbc3 {[%clk 0:02:50.7]} 10... Qb6 {[%clk 0:02:51.7]} 11. Bxa6
{[%clk 0:02:45.5]} 11... Nxa6 {[%clk 0:02:49.9]} 12. a3 {[%clk 0:02:44.3]} 12...
Rfb8 {[%clk 0:02:46.3]} 13. Qc2 {[%clk 0:02:22.9]} 13... Nb4 {[%clk 0:02:35]}
14. Qd1 {[%clk 0:02:21.3]} 14... Qa6 {[%clk 0:02:29.7]} 15. Rb1 {[%clk
0:02:18.8]} 15... Nd3 {[%clk 0:02:28.7]} 16. Nf4 {[%clk 0:02:10.3]} 16... Nxc1
{[%clk 0:02:15.2]} 17. Qxc1 {[%clk 0:02:07.5]} 17... Bh6 {[%clk 0:02:15.4]} 18.
g3 {[%clk 0:02:01.9]} 18... Qc4 {[%clk 0:02:07.2]} 19. Qc2 {[%clk 0:01:58.9]}
19... Bxf4 {[%clk 0:02:02.6]} 20. gxf4 {[%clk 0:01:58.4]} 20... Nh5 {[%clk
0:01:58.8]} 21. Qd2 {[%clk 0:01:57.7]} 21... Qd4 {[%clk 0:01:51.2]} 22. Rfd1
{[%clk 0:01:40.4]} 22... Qxd2 {[%clk 0:01:50.3]} 23. Rxd2 {[%clk 0:01:39.9]}
23... Nxf4 {[%clk 0:01:51.2]} 24. f3 {[%clk 0:01:38.5]} 24... Rb3 {[%clk
0:01:48.8]} 25. Rc1 {[%clk 0:01:35.8]} 25... Rab8 {[%clk 0:01:47.9]} 26. Rcc2
{[%clk 0:01:35.4]} 26... c4 {[%clk 0:01:38.1]} 27. Nd1 {[%clk 0:01:26.1]} 27...
Rxf3 {[%clk 0:01:35.3]} 28. Rxc4 {[%clk 0:01:25.7]} 28... Kg7 {[%clk 0:01:23.5]}
29. Rc3 {[%clk 0:01:23.5]} 29... Rxc3 {[%clk 0:01:13.9]} 30. Nxc3 {[%clk
0:01:23.3]} 30... f5 {[%clk 0:01:11.7]} 31. Kf2 {[%clk 0:01:05.3]} 31... Rxb2
{[%clk 0:01:07]} 32. Rxb2 {[%clk 0:00:50]} 32... Nd3+ {[%clk 0:01:06.2]} 33. Ke3
{[%clk 0:00:50.1]} 33... Nxb2 {[%clk 0:01:07.1]} 34. Kd4 {[%clk 0:00:50.1]}
34... f4 {[%clk 0:01:05.1]} 35. a4 {[%clk 0:00:47.9]} 35... Kf6 {[%clk
0:00:56.3]} 36. a5 {[%clk 0:00:45.4]} 36... f3 {[%clk 0:00:56.3]} 37. Nd1 {[%clk
0:00:36.4]} 37... Nxd1 {[%clk 0:00:55.4]} 38. a6 {[%clk 0:00:36.4]} 38... f2
{[%clk 0:00:55.1]} 39. a7 {[%clk 0:00:36.6]} 39... f1=Q {[%clk 0:00:53.7]} 40.
a8=Q {[%clk 0:00:36.3]} 40... Qf2+ {[%clk 0:00:53.6]} 41. Kd3 {[%clk 0:00:32.8]}
41... Qe3+ {[%clk 0:00:51]} 42. Kc2 {[%clk 0:00:32.9]} 42... Qe2+ {[%clk
0:00:50.1]} 43. Kc1 {[%clk 0:00:32.4]} 43... Nf2 {[%clk 0:00:45.2]} 44. Qf8+
{[%clk 0:00:29.6]} 44... Kg5 {[%clk 0:00:44.9]} 45. Qxe7+ {[%clk 0:00:28.8]}
45... Kg4 {[%clk 0:00:39.2]} 46. Qxd6 {[%clk 0:00:15.2]} 46... Nd3+ {[%clk
0:00:38.3]} 47. Kb1 {[%clk 0:00:14.9]} 47... Qb2# {[%clk 0:00:39.2]} 0-1

[Event "*** Titled Tuesday Blitz"]
[Site "Chess.com"]
[Date "2020.04.14"]
[Round "9"]
[White "cukus"]
[Black "Aygehovit1992"]
[Result "1-0"]
[WhiteElo "2485"]
[BlackElo "2730"]
[TimeControl "180+1"]
[EndTime "11:43:03 PDT"]
[Termination "cukus won by resignation"]

1. e4 {[%clk 0:03:00.9]} 1... c5 {[%clk 0:02:57.2]} 2. Nf3 {[%clk 0:03:00.8]}
2... d6 {[%clk 0:02:57.6]} 3. d4 {[%clk 0:03:01]} 3... cxd4 {[%clk 0:02:58.5]}
4. Nxd4 {[%clk 0:03:01.9]} 4... Nf6 {[%clk 0:02:59.2]} 5. Nc3 {[%clk 0:03:02.3]}
5... Nc6 {[%clk 0:02:59.9]} 6. Bg5 {[%clk 0:03:01.7]} 6... Bd7 {[%clk
0:02:59.2]} 7. f4 {[%clk 0:02:45.5]} 7... Qb6 {[%clk 0:02:53.3]} 8. Nb3 {[%clk
0:02:32.9]} 8... Rc8 {[%clk 0:02:46.1]} 9. Qd2 {[%clk 0:02:27.4]} 9... h6 {[%clk
0:02:45.3]} 10. Bxf6 {[%clk 0:02:25.6]} 10... gxf6 {[%clk 0:02:46.2]} 11. O-O-O
{[%clk 0:02:25.8]} 11... Nb4 {[%clk 0:02:45.1]} 12. Kb1 {[%clk 0:02:20.7]} 12...
e6 {[%clk 0:02:45]} 13. Be2 {[%clk 0:02:10.5]} 13... a5 {[%clk 0:02:40.6]} 14.
a3 {[%clk 0:02:08.3]} 14... a4 {[%clk 0:02:30.9]} 15. Nd4 {[%clk 0:02:03.2]}
15... Na6 {[%clk 0:02:28.8]} 16. Rhe1 {[%clk 0:01:58.2]} 16... d5 {[%clk
0:02:24.1]} 17. exd5 {[%clk 0:01:52.8]} 17... Bxa3 {[%clk 0:02:23.2]} 18. Bb5
{[%clk 0:01:47.2]} 18... Bxb2 {[%clk 0:01:51.6]} 19. Kxb2 {[%clk 0:01:42.1]}
19... a3+ {[%clk 0:01:31.4]} 20. Ka1 {[%clk 0:01:39.3]} 20... O-O {[%clk
0:01:21.4]} 21. dxe6 {[%clk 0:01:32.8]} 21... fxe6 {[%clk 0:01:16.4]} 22. Re3
{[%clk 0:01:22.5]} 22... Rf7 {[%clk 0:01:08.9]} 23. Rg3+ {[%clk 0:01:19.8]}
23... Kf8 {[%clk 0:01:08.6]} 24. f5 {[%clk 0:01:16.3]} 24... e5 {[%clk
0:01:04.5]} 25. Ne6+ {[%clk 0:01:08.1]} 25... Bxe6 {[%clk 0:01:02.1]} 26. fxe6
{[%clk 0:01:06.7]} 26... Qxe6 {[%clk 0:01:00.2]} 27. Qxh6+ {[%clk 0:01:05.8]}
27... Ke7 {[%clk 0:00:55.6]} 28. Rd7+ {[%clk 0:01:00.1]} 28... Qxd7 {[%clk
0:00:54.8]} 29. Bxd7 {[%clk 0:01:00]} 29... Kxd7 {[%clk 0:00:55.7]} 30. Rg7
{[%clk 0:00:56.7]} 30... Rf8 {[%clk 0:00:41.5]} 31. Qg6 {[%clk 0:00:52.2]} 31...
Ke6 {[%clk 0:00:40.4]} 32. Rxf7 {[%clk 0:00:51.5]} 32... Rxf7 {[%clk 0:00:41.3]}
33. Ne4 {[%clk 0:00:50.3]} 33... Rf8 {[%clk 0:00:38.1]} 34. h4 {[%clk
0:00:46.3]} 34... Nb4 {[%clk 0:00:37.4]} 35. h5 {[%clk 0:00:39.8]} 35... Nxc2+
{[%clk 0:00:37.5]} 36. Ka2 {[%clk 0:00:38.6]} 36... Nb4+ {[%clk 0:00:35.5]} 37.
Kxa3 {[%clk 0:00:36.7]} 37... Nd5 {[%clk 0:00:35.9]} 38. h6 {[%clk 0:00:34.8]}
38... Nf4 {[%clk 0:00:35.1]} 39. Qg7 {[%clk 0:00:34.7]} 39... Ra8+ {[%clk
0:00:34.7]} 40. Kb3 {[%clk 0:00:35]} 40... Kf5 {[%clk 0:00:28.2]} 41. h7 {[%clk
0:00:28.7]} 41... Rb8 {[%clk 0:00:06.1]} 42. h8=Q {[%clk 0:00:23.4]} 42... Rxh8
{[%clk 0:00:05.8]} 43. Ng3+ {[%clk 0:00:23.6]} 43... Ke6 {[%clk 0:00:04]} 44.
Qxh8 {[%clk 0:00:23.8]} 1-0

[Event "*** Titled Tuesday Blitz"]
[Site "Chess.com"]
[Date "2020.04.14"]
[Round "9"]
[White "Igrok3069"]
[Black "Lestofante90"]
[Result "1-0"]
[WhiteElo "2670"]
[BlackElo "2771"]
[TimeControl "180+1"]
[EndTime "11:43:03 PDT"]
[Termination "Igrok3069 won on time"]

1. d4 {[%clk 0:03:00.9]} 1... Nf6 {[%clk 0:02:57.4]} 2. c4 {[%clk 0:03:00.7]}
2... g6 {[%clk 0:02:57.5]} 3. f3 {[%clk 0:03:00.3]} 3... Bg7 {[%clk 0:02:57.5]}
4. e4 {[%clk 0:03:00.4]} 4... d6 {[%clk 0:02:57.8]} 5. Nc3 {[%clk 0:03:01]} 5...
O-O {[%clk 0:02:58.1]} 6. Nge2 {[%clk 0:03:01.2]} 6... c5 {[%clk 0:02:58.2]} 7.
d5 {[%clk 0:03:01.4]} 7... e6 {[%clk 0:02:37.4]} 8. Bg5 {[%clk 0:03:00.1]} 8...
exd5 {[%clk 0:02:36.8]} 9. cxd5 {[%clk 0:03:01]} 9... h6 {[%clk 0:02:33]} 10.
Be3 {[%clk 0:02:55.7]} 10... Nbd7 {[%clk 0:02:32.5]} 11. Qd2 {[%clk 0:02:55.3]}
11... Ne5 {[%clk 0:02:32.2]} 12. Nc1 {[%clk 0:02:38.1]} 12... a6 {[%clk
0:02:30.2]} 13. Be2 {[%clk 0:02:24.8]} 13... b5 {[%clk 0:02:25.1]} 14. O-O
{[%clk 0:02:24.1]} 14... h5 {[%clk 0:02:05.6]} 15. Kh1 {[%clk 0:02:03.7]} 15...
Bd7 {[%clk 0:01:55.4]} 16. Bg5 {[%clk 0:02:00.7]} 16... Qb6 {[%clk 0:01:09.1]}
17. Nd3 {[%clk 0:02:00]} 17... Nh7 {[%clk 0:00:53.9]} 18. Bh6 {[%clk 0:01:59.6]}
18... Nxd3 {[%clk 0:00:36.1]} 19. Bxd3 {[%clk 0:01:53.3]} 19... c4 {[%clk
0:00:36.1]} 20. Bc2 {[%clk 0:01:47]} 20... b4 {[%clk 0:00:35.6]} 21. Bxg7 {[%clk
0:01:45.3]} 21... Kxg7 {[%clk 0:00:35]} 22. Ne2 {[%clk 0:01:46]} 22... Rac8
{[%clk 0:00:34]} 23. f4 {[%clk 0:01:45]} 23... c3 {[%clk 0:00:26.7]} 24. bxc3
{[%clk 0:01:42.2]} 24... bxc3 {[%clk 0:00:27.6]} 25. Nxc3 {[%clk 0:01:34.6]}
25... Qc5 {[%clk 0:00:23.1]} 26. Rf3 {[%clk 0:01:32.9]} 26... Rc7 {[%clk
0:00:10.9]} 27. Bb3 {[%clk 0:01:22.8]} 27... Rfc8 {[%clk 0:00:09.6]} 28. Ne2
{[%clk 0:01:13.7]} 28... Nf6 {[%clk 0:00:08.2]} 29. e5 {[%clk 0:01:03.5]} 29...
Ne4 {[%clk 0:00:08]} 30. Qe3 {[%clk 0:00:56.6]} 30... Bf5 {[%clk 0:00:07.7]} 31.
Qxc5 {[%clk 0:00:51.7]} 31... Rxc5 {[%clk 0:00:06.9]} 32. Re3 {[%clk 0:00:19.7]}
32... Nd2 {[%clk 0:00:06.4]} 33. h3 {[%clk 0:00:19.6]} 33... Nxb3 {[%clk
0:00:06.3]} 34. axb3 {[%clk 0:00:19.3]} 34... a5 {[%clk 0:00:03.9]} 35. Rd1
{[%clk 0:00:16.5]} 35... dxe5 {[%clk 0:00:03]} 36. fxe5 {[%clk 0:00:16.2]} 36...
Rd8 {[%clk 0:00:03.2]} 37. Nc3 {[%clk 0:00:15.1]} 37... Bc2 {[%clk 0:00:01.6]}
38. Rd2 {[%clk 0:00:14.1]} 38... Bxb3 {[%clk 0:00:01.8]} 39. d6 {[%clk
0:00:14.7]} 1-0